Cogmind - Beta 14 @@@ ROGUE MODE // 2024.09.23 @ 15:20:05 Player: morimori Result: Destroyed by 4D-GG8(z) with Zionite Laser-S Performance ------------- Evolutions (3) 1500 Regions Visited (13) 2600 Robots Destroyed (251) 1255 Value Destroyed (6520) 6520 Prototype IDs (43) 860 Alien Tech Used (1) 200 Bonus (843) 843 TOTAL SCORE: 13778 Bonus ------- High Alert Combat Kills 231 Follower Combat Kills 132 Aligned with FarCom 300 Destroyed Z-Imprinter 1000 Friendly Fire -820 Cogmind --------- Core Integrity 0/700 Matter 144/300 Energy 29/100 System Corruption 18% Temperature Cool (9) Movement Walking (170) Ox1 Location -7/Deep Caves Parts ------- > --- POWER (1) -------- (None) > --- PROPULSION (6) --- Potential Leg > --- UTILITY (4) ------ High-capacity Storage Unit Improved Signal Interpreter Advanced Terrain Scan Processor > --- WEAPON (3) ------- RU-N14's Throwing Claymores > --- INVENTORY (20) --- Experimental Heat Sink Experimental Heat Sink Zionite Biocell (600) Large Matter Pod (150) Improved Terrain Scanner Phase Shifter Cloak of Protection Zionite Light Carapace Hardened Medium Armor Plating Insulated Plating Hacking Suite Hacking Suite Hacking Suite Hacking Drone Bay (1/1) Zionite Laser-M Advanced Assault Cannon RU-N14's Throwing Claymores (5) RU-N14's Throwing Claymores (2) Master Tearclaws Peak State ------------ > --- POWER ------------ Zionite Light DM Reactor > --- PROPULSION ------- Aluminum Leg Potential Leg Zionite Glidesys I Zionite Glidesys I > --- UTILITY ---------- Experimental Heat Sink High-capacity Storage Unit Improved Signal Interpreter Advanced Terrain Scan Processor > --- WEAPON ----------- Zionite Laser-M Guided EMP Blaster > --- INVENTORY -------- Advanced Heat Sink Experimental Heat Sink Experimental Heat Sink Large Matter Pod Improved Terrain Scanner Cloak of Protection Hardened Medium Armor Plating Insulated Plating Hacking Suite Hacking Suite Hacking Suite Hacking Drone Bay Advanced Assault Cannon RU-N14's Throwing Claymores RU-N14's Throwing Claymores RU-N14's Throwing Claymores Master Tearclaws [Rating: 75] Favorites ----------- Power Improved Deuterium Engine Engine Improved Deuterium Engine Power Core Light Nuclear Core Reactor Zionite Light DM Reactor Propulsion Carbon-fiber Leg Leg Carbon-fiber Leg Wheel Wheel Hover Unit Zionite Glidesys I Utility Huge Storage Unit Device Hardlight Generator Storage Huge Storage Unit Processor Improved Signal Interpreter Hackware Makeshift System Shield Protection Hardened Light Armor Plating Weapon Improved Assault Rifle Energy Gun Zionite Laser-M Energy Cannon Advanced Beam Cannon Ballistic Gun Improved Assault Rifle Ballistic Cannon Heavy Assault Cannon Launcher Guided EMP Blaster Special Weapon RU-N14's Throwing Claymores Impact Weapon Great Maul Slashing Weapon Master Tearclaws Build | -11 -10 -10 -9 -9 -9 -8 -8 -8 -7 -7 -7 -7 -7 ------- Run | Yrd Mat Min Mat Min Exi Min Mat Sto Fac Low Low Zio Dee Slots Evolved 6 | . . . 2 . . . 2 . 2 . . . . Power . | . . . . . . . . . . . . . . Propulsion 4 | . . . . . . . 2 . 2 . . . . Utility 2 | . . . 2 . . . . . . . . . . Weapon . | . . . . . . . . . . . . . . Parts Attached 250 | 8 15 14 48 4 . 4 20 21 48 16 23 7 22 Power 22 | 1 3 2 4 . . . 3 . 3 1 2 . 3 Engine 16 | 1 3 2 4 . . . 1 . 2 1 2 . . Core 5 | . . . . . . . 2 . 1 . . . 2 Reactor 1 | . . . . . . . . . . . . . 1 Propulsion 70 | 3 6 3 15 . . . 8 8 13 3 6 . 5 Treads . | . . . . . . . . . . . . . . Leg 27 | . . 1 . . . . . 1 13 3 6 . 3 Wheel 41 | 3 6 2 15 . . . 8 7 . . . . . Hover 2 | . . . . . . . . . . . . . 2 Flight . | . . . . . . . . . . . . . . Utility 76 | 2 3 4 18 . . . 2 1 25 10 5 1 5 Device 35 | 1 2 4 7 . . . 1 . 12 4 2 1 1 Storage 4 | 1 1 . . . . . . . 1 . . . 1 Processor 6 | . . . 2 . . . . 1 1 2 . . . Hackware 1 | . . . . . . . . . . . 1 . . Protection 30 | . . . 9 . . . 1 . 11 4 2 . 3 Artifact . | . . . . . . . . . . . . . . Weapon 82 | 2 3 5 11 4 . 4 7 12 7 2 10 6 9 Energy Gun 3 | . . . 1 . . . . 1 . . . . 1 Energy Cannon 1 | . . . . . . . . 1 . . . . . Ballistic Gun 29 | 2 3 2 7 2 . 2 4 6 1 . . . . Ballistic Cannon 17 | . . 2 1 . . . . . 4 1 7 1 1 Launcher 21 | . . 1 2 2 . 2 2 3 2 1 3 . 3 Special Weapon 5 | . . . . . . . . . . . . 2 3 Impact Weapon 2 | . . . . . . . 1 1 . . . . . Slashing Weapon 4 | . . . . . . . . . . . . 3 1 Piercing Weapon . | . . . . . . . . . . . . . . Special Melee Weapon . | . . . . . . . . . . . . . . Unidentified Prototypes 19 | . . 1 4 . . . . 2 2 . . 3 7 Corrupted Parts 6 | . . 1 . . . . . . . . 1 1 3 System Corruption 24 | . . 3 . . . . . . . . 5 6 10 Parts Lost 48 | . 5 3 6 . . . 3 5 . 2 8 . 16 Power 9 | . 2 1 . . . . . . . 1 1 . 4 Propulsion 26 | . 3 1 4 . . . 2 2 . . 5 . 9 Utility 7 | . . . 2 . . . 1 1 . 1 1 . 1 Weapon 6 | . . 1 . . . . . 2 . . 1 . 2 Highest Loss Streak 10 | . 3 3 1 . . . 1 2 . 1 7 . 10 To Critical Strikes . | . . . . . . . . . . . . . . Average Slot Usage (%) 94 | . 99 96 99 100 100 100 94 92 91 91 91 88 75 Engine 7 | . 13 11 11 11 11 11 3 . 2 7 6 7 2 Core 1 | . . . . . . . 5 9 4 . . . . Leg 20 | . . . . . . . . . 45 45 41 44 23 Wheel 13 | . 27 27 21 22 22 22 30 33 . . . . . Device 8 | . 14 14 8 11 11 11 9 5 5 8 5 4 3 Storage 9 | . 14 14 11 11 11 11 9 9 7 7 7 7 7 Processor 10 | . . . 10 11 11 11 9 15 15 12 15 14 14 Protection 3 | . . . 12 11 11 11 9 2 1 1 . . . Ballistic Gun 11 | . 27 24 19 21 22 21 16 16 . . . . . Ballistic Cannon 3 | . . 3 2 . . . . . 6 6 12 . . Peak Build Rating 75 | 8 11 19 25 25 28 28 35 33 58 59 54 59 75 Average Rating 35 | 6 9 11 20 24 26 27 30 29 50 53 46 55 60 On Entrance 29 | . 8 10 14 25 25 28 28 32 26 54 54 47 57 Naked Turns . | . . . . . . . . . . . . . . Heaviest Build 105 | 11 89 88 104 105 104 105 104 102 65 82 64 69 67 Greatest Support 104 | 26 26 26 32 20 20 20 46 58 99 104 102 85 75 Greatest Overweight (x) 21 | . 4 5 9 5 5 5 5 2 . . 1 . 21 Average Overweight (x) 1 | . 3 3 4 5 5 5 2 1 . . . . 2 Largest Inventory Capacity 25 | 8 25 25 25 25 25 25 25 25 25 20 20 20 20 Average Capacity 22 | 7 24 25 25 25 25 25 25 25 20 20 20 20 20 Most Carried 25 | 8 25 25 25 25 25 25 25 25 25 20 20 20 20 Average Carried 21 | 6 22 24 24 25 24 25 24 24 19 19 16 19 18 Final Capacity 25 | 8 25 25 25 25 25 25 25 25 20 20 20 20 20 Final Carried 25 | 8 25 25 25 25 25 25 25 25 20 20 18 20 20 Class Distribution -------------------- 50% | Mutant 31% | Scavenger-Mutant 13% | Skirmisher Dominant Class ---------------- Mutant | -10/Materials Mutant | -10/Mines Scavenger-Mutant | -9/Materials Mutant | -9/Mines Mutant | -9/Exiles Mutant | -8/Mines Mutant | -8/Materials Mutant | -8/Storage Skirmisher | -7/Factory Mutant | -7/Lower Caves Scavenger-Mutant | -7/Lower Caves Scavenger-Mutant | -7/Zion Scavenger-Gunner | -7/Deep Caves Resources | -11 -10 -10 -9 -9 -9 -8 -8 -8 -7 -7 -7 -7 -7 ----------- Run | Yrd Mat Min Mat Min Exi Min Mat Sto Fac Low Low Zio Dee Matter Collected 6863 | 320 618 250 1378 78 42 99 613 462 1123 734 887 138 121 Remotely . | . . . . . . . . . . . . . . Salvage Created 7768 | 213 1044 268 1863 102 . 135 867 991 1150 440 372 . 323 Parts 490 | 15 66 18 153 10 . 9 51 55 68 10 16 . 19 Haulers Intercepted 8 | . 2 . 5 . . . . 1 . . . . . Recyclers Shooed 12 | . 6 1 1 . . . 1 1 2 . . . . Parts Field Recycled . | . . . . . . . . . . . . . . Retrieved Matter . | . . . . . . . . . . . . . . Parts Self-Destructed 32 | . . . . . . . . . . 15 14 3 . Prevented 6 | . . . . . . . . . . . 6 . . Kills | -11 -10 -10 -9 -9 -9 -8 -8 -8 -7 -7 -7 -7 -7 ------- Run | Yrd Mat Min Mat Min Exi Min Mat Sto Fac Low Low Zio Dee Combat Hostiles Destroyed 160 | . 15 4 37 9 . 7 14 21 21 13 10 . 9 Guns 58 | . 15 1 23 2 . 2 7 8 . . . . . Cannons 46 | . . 1 8 . . . . . 16 13 7 . 1 AOE 55 | . . 2 6 7 . 5 7 13 5 . 2 . 8 Classes Destroyed 19 | 3 6 . 2 1 . . . 2 1 . 2 . 2 Worker 23 | 2 2 . 5 . . . 5 4 5 . . . . Builder 11 | . 3 1 2 . . . 4 1 . . . . . Tunneler 5 | 4 . . . . . . . . 1 . . . . Hauler 8 | . 2 . 5 . . . . 1 . . . . . Recycler 18 | 1 3 1 1 . . 1 3 1 7 . . . . Mechanic 3 | . . . 2 . . . 1 . . . . . . Operator 8 | . 2 . 4 . . . . 1 1 . . . . Watcher 14 | . 3 . 4 . . . 4 1 2 . . . . Swarmer 43 | . 3 . 9 7 . 7 8 3 4 2 . . . Grunt 70 | . 12 4 18 1 . . 5 11 7 8 4 . . Brawler 6 | . . . . 1 . . . 2 1 2 . . . Duelist 2 | . . . . . . . . 2 . . . . . Protector 3 | . . . . . . . . 2 1 . . . . Sentry 18 | . . . 10 . . . 1 1 4 2 . . . Programmer 4 | . . . . . . . . . 4 . . . . Z-Light 5 | . . . . . . . . . . . . . 5 Master Thief 1 | . . . . . . . . . . . 1 . . Assembled 3 | . . . . . . . . . . . . . 3 Thug 6 | . . 1 . . . . . 2 . . 3 . . Savage 1 | . . . . . . . . . . . 1 . . Mutant 1 | . . . . . . . . . . . 1 . . Best Kill Streak 9 | 2 5 3 8 4 . 4 7 9 5 4 4 . 3 Combat Bots Only 9 | . 5 2 7 4 . 4 4 9 5 4 4 . 3 Max Kills in Single Turn 5 | 1 1 2 4 3 . 2 3 5 5 1 1 . 3 Gunslinging . | . . . . . . . . . . . . . . Exploded 5 | . . 2 3 3 . 2 3 5 5 . 1 . 2 Melee . | . . . . . . . . . . . . . . Uniques/NPCs Destroyed 1 | . . . . . . . . . . . . . 1 Z-Imprinter (-7/Deep Caves) Combat | -11 -10 -10 -9 -9 -9 -8 -8 -8 -7 -7 -7 -7 -7 -------- Run | Yrd Mat Min Mat Min Exi Min Mat Sto Fac Low Low Zio Dee Hostile Shots Fired 836 | . 78 35 169 15 . 10 66 55 144 102 82 . 80 Missed 289 | . 25 11 63 4 . 3 18 21 53 39 31 . 21 Damage Taken 8453 | . 664 334 1235 89 . 429 517 568 852 741 1118 . 1906 Core 1376 | . 150 66 119 15 . 167 85 71 61 60 235 . 347 Absorbed by Shields 536 | . 9 28 187 44 . 28 192 48 . . . . . Redirected to Shielding 212 | . . . . . . . . . 54 . . . 158 Ignored by Resistances 294 | . . . 70 . . . . . 67 145 12 . . Regen/Repaired (Parts) 266 | . 57 . 21 . . . . . 121 . . 67 . Core Remaining (%) 52 | 100 . 13 . . . 24 . 71 . . . . . Volleys Fired 680 | 20 123 39 164 10 . 6 68 48 97 40 52 1 12 Largest 2 | 2 2 2 2 2 . 2 2 2 1 1 2 1 1 Hottest 96 | 40 40 55 58 46 . 56 56 56 60 60 96 48 50 Shots Fired 1132 | 40 244 64 325 16 . 9 130 84 99 40 68 1 12 Gun 817 | 40 244 57 262 12 . 5 124 73 . . . . . Cannon 261 | . . 2 60 . . . . . 98 40 58 1 2 Launcher 49 | . . 5 3 4 . 4 6 11 1 . 10 . 5 Special 5 | . . . . . . . . . . . . . 5 Kinetic 1078 | 40 244 59 322 12 . 5 124 73 98 40 58 1 2 Thermal . | . . . . . . . . . . . . . . Explosive 38 | . . 5 3 4 . 4 6 11 . . . . 5 Electromagnetic 16 | . . . . . . . . . 1 . 10 . 5 Robot Hit Streak 21 | 6 15 12 20 12 . 6 21 12 6 12 12 . 5 Robot Miss Streak 6 | 3 4 3 6 1 . . 3 2 4 2 3 . 2 Penetration Max 1 | . . . . . . . . . 1 . . . . Secondary Targets 6 | . 2 1 . . . . 3 . . . . . . Max Gunslinging Chain 1 | . 1 1 . . . . 1 . . . . . . Shots Hit Robots 752 | 26 158 40 227 12 . 6 102 56 47 31 36 . 11 Core Hits 398 | 14 67 16 92 13 . 8 46 57 40 13 16 . 16 Critical Kills 1 | . 1 . . . . . . . . . . . . Critical Parts Destroyed 5 | . 1 . 1 1 . . 1 1 . . . . . Critical Strikes 17 | . 2 . 2 1 . . 1 1 4 5 1 . . Destroy 6 | . 2 . 1 1 . . 1 1 . . . . . Blast 11 | . . . 1 . . . . . 4 5 1 . . Melee Attacks 58 | . . . . . . . 3 49 . . . 2 4 Impact 52 | . . . . . . . 3 49 . . . . . Slashing 6 | . . . . . . . . . . . . 2 4 Piercing . | . . . . . . . . . . . . . . Sneak Attacks 1 | . . . . . . . 1 . . . . . . Combat Hostiles . | . . . . . . . . . . . . . . Follow-up Attacks . | . . . . . . . . . . . . . . Damage Inflicted 21112 | 210 1511 641 3590 557 . 370 2444 2627 4195 1846 1792 . 1329 Guns 7441 | 210 1509 397 2565 167 . 87 1623 883 . . . . . Cannons 6732 | . . 18 616 . . . . . 2865 1846 1361 . 26 Explosions 6619 | . 2 226 396 390 . 283 734 1744 1330 . 431 . 1083 Melee 101 | . . . . . . . 87 . . . . . 14 Ramming 13 | . . . 13 . . . . . . . . . . Kinetic 14173 | 210 1509 415 3181 167 . 87 1623 883 2865 1846 1361 . 26 Thermal 1284 | . . . . . . . . . 983 . 54 . 247 Explosive 4628 | . . 226 396 390 . 283 734 1744 297 . . . 558 Electromagnetic 707 | . 2 . . . . . . . 50 . 377 . 278 Impact 87 | . . . . . . . 87 . . . . . . Slashing 220 | . . . . . . . . . . . . . 220 Piercing . | . . . . . . . . . . . . . . Highest Corruption 18 | . 2 5 . . . . . . 1 1 6 6 18 Average Corruption 3 | . 2 2 . . . . . . 1 1 5 6 12 Corruption Purged 1 | . . . . . . . . . 1 . . . . Corruption Blocked . | . . . . . . . . . . . . . . Effects 150 | . 22 16 . . . . . . 10 11 29 34 28 Message Errors 40 | . 6 5 . . . . . . 2 5 6 9 7 Matter Fused 32 | . 5 1 . . . . . . 3 1 6 9 7 Heat Flow Errors 20 | . 1 5 . . . . . . 1 1 4 6 2 Energy Discharges 21 | . 3 3 . . . . . . 1 . 4 4 6 Parts Rejected 2 | . . . . . . . . . . 1 1 . . Parts Fused 1 | . 1 . . . . . . . . . . . . Data Loss (minor) 16 | . 2 1 . . . . . . 1 2 3 4 3 Data Loss (major) 2 | . . . . . . . . . . . . 1 1 Misfires 8 | . 1 1 . . . . . . 2 . 4 . . Alerts 5 | . . . . . . . . . . 1 1 1 2 Weapon Failures 3 | . 3 . . . . . . . . . . . . Overload Shots . | . . . . . . . . . . . . . . Overflow Damage 816 | . . . 61 47 . . 123 14 421 18 79 . 53 Projectiles 505 | . . . . . . . . . 356 18 79 . 52 Explosions 264 | . . . 61 47 . . 76 14 65 . . . 1 Melee 47 | . . . . . . . 47 . . . . . . Knockbacks 34 | . . . 7 . . . . . 12 4 11 . . Impact 1 | . . . 1 . . . . . . . . . . Kinetic 32 | . . . 6 . . . . . 12 4 10 . . Secondary 1 | . . . . . . . . . . . 1 . . Self-Inflicted Damage 363 | . 43 11 25 30 . . . . . . 129 . 125 Shots 13 | . 1 1 1 1 . . . . . . 5 . 4 Rammed 1 | . . . 1 . . . . . . . . . . Targets Rammed 1 | . . . 1 . . . . . . . . . . Kicked . | . . . . . . . . . . . . . . Crushed . | . . . . . . . . . . . . . . Highest Temperature 271 | . 146 246 90 . . . 32 3 240 245 271 194 256 Average Temperature 43 | . 18 67 15 . . . 9 2 24 86 85 90 57 Received Heat Transfer 2607 | . 291 197 456 18 . . 247 165 177 210 324 . 522 Effects 1 | . . . . . . . . . . . 1 . . Energy Bleed 1 | . . . . . . . . . . . 1 . . Siege Activations . | . . . . . . . . . . . . . . Robots Corrupted 2 | . . . . . . . 1 . . . 1 . . Combat Hostiles 1 | . . . . . . . . . . . 1 . . Parts Fried 8 | . . . . . . . 2 . . . 4 . 2 Impact Corruptions 2 | . . . . . . . 2 . . . . . . Robots Melted . | . . . . . . . . . . . . . . Combat Hostiles . | . . . . . . . . . . . . . . Parts Melted 3 | . . . . . . . . . 1 . . . 2 Heat Transferred 775 | . . . . . . . . . 575 . 50 . 150 Parts Sabotaged . | . . . . . . . . . . . . . . Parts Stolen 2 | . . . . . . . . . . . 2 . . Parts Stripped . | . . . . . . . . . . . . . . Power Chain Reactions 3 | . . . . . . . . . . . 1 . 2 Alert | -11 -10 -10 -9 -9 -9 -8 -8 -8 -7 -7 -7 -7 -7 ------- Run | Yrd Mat Min Mat Min Exi Min Mat Sto Fac Low Low Zio Dee Peak Influence 714 | 35 231 72 512 385 . 227 539 459 714 . . . . Initial 177 | . 22 2 . 124 . . 88 176 177 . . . . Average 226 | 16 49 22 289 239 . 105 291 280 346 . . . . Maximum Alert Level 3 | . 1 . 2 1 . 1 2 2 3 . . . . Low Security (%) 50 | 100 94 100 9 53 . 89 33 33 41 . . . . Level 1 35 | . 5 . 81 46 . 10 49 54 20 . . . . Level 2 12 | . . . 9 . . . 17 11 33 . . . . Level 3 1 | . . . . . . . . . 5 . . . . Level 4 . | . . . . . . . . . . . . . . Level 5 . | . . . . . . . . . . . . . . High Security . | . . . . . . . . . . . . . . Max Security . | . . . . . . . . . . . . . . Squads Dispatched 19 | . 3 . 3 . . . 2 5 6 . . . . Investigation 4 | . 1 . 1 . . . . 1 1 . . . . Extermination 4 | . . . . . . . . . 4 . . . . Reinforcement 7 | . 2 . 2 . . . 1 2 . . . . . Assault 3 | . . . . . . . . 2 1 . . . . Garrison 1 | . . . . . . . 1 . . . . . . Intercept . | . . . . . . . . . . . . . . Searches Triggered . | . . . . . . . . . . . . . . Construction Impeded 1 | . . . . . . . 1 . . . . . . Haulers Reinforced . | . . . . . . . . . . . . . . Active Scanning Responses . | . . . . . . . . . . . . . . Cargo Convoy Interrupts . | . . . . . . . . . . . . . . Stealth | -11 -10 -10 -9 -9 -9 -8 -8 -8 -7 -7 -7 -7 -7 --------- Run | Yrd Mat Min Mat Min Exi Min Mat Sto Fac Low Low Zio Dee Distress Signals 12 | . 3 . 2 . . . 2 4 1 . . . . Communications Jammed . | . . . . . . . . . . . . . . Distress Signals . | . . . . . . . . . . . . . . Times Spotted 235 | . 38 4 51 7 . 6 25 31 29 17 15 . 12 Peak Tracking Total 10 | . 6 2 4 4 . 4 5 10 5 7 5 . 5 Tactical Retreats 10 | . 1 . 3 . . . . . 1 2 3 . . Traps | -11 -10 -10 -9 -9 -9 -8 -8 -8 -7 -7 -7 -7 -7 ------- Run | Yrd Mat Min Mat Min Exi Min Mat Sto Fac Low Low Zio Dee Traps Triggered 6 | . 3 . . . . . . 3 . . . . . Indirectly . | . . . . . . . . . . . . . . Trap Hack Attempts . | . . . . . . . . . . . . . . Triggered . | . . . . . . . . . . . . . . Disarmed . | . . . . . . . . . . . . . . Reprogrammed . | . . . . . . . . . . . . . . Reused . | . . . . . . . . . . . . . . Traps Extracted . | . . . . . . . . . . . . . . Installed . | . . . . . . . . . . . . . . Triggered 1 | . . . . . . . . . . . 1 . . Machines | -11 -10 -10 -9 -9 -9 -8 -8 -8 -7 -7 -7 -7 -7 ---------- Run | Yrd Mat Min Mat Min Exi Min Mat Sto Fac Low Low Zio Dee Machines Disabled 34 | . 1 . 3 . . 2 1 5 21 . . . 1 Max in Single Turn 5 | . 1 . 1 . . 2 1 3 5 . . . 1 Garrison Access 1 | . . . . . . . . . 1 . . . . Machines Repaired . | . . . . . . . . . . . . . . Machines Dismantled . | . . . . . . . . . . . . . . Machines Sabotaged . | . . . . . . . . . . . . . . Overloaded Fab Kills . | . . . . . . . . . . . . . . Hacking | -11 -10 -10 -9 -9 -9 -8 -8 -8 -7 -7 -7 -7 -7 --------- Run | Yrd Mat Min Mat Min Exi Min Mat Sto Fac Low Low Zio Dee Machines Accessed 52 | . 8 1 14 . 1 . 1 7 16 1 2 1 . Terminals 33 | . 6 . 10 . . . 1 7 9 . . . . Fabricators 1 | . . . . . . . . . 1 . . . . Repair Stations 4 | . 1 . 1 . . . . . 2 . . . . Recycling Units 4 | . 1 . 2 . . . . . 1 . . . . Scanalyzers 2 | . . . 1 . . . . . 1 . . . . Garrison Access 2 | . . . . . . . . . 2 . . . . Total Hacks 141 | . 29 1 42 . 1 . 3 12 40 1 7 5 . Successful 70 | . 15 1 20 . 1 . 1 6 13 1 7 5 . Failed 69 | . 13 . 21 . . . 2 6 27 . . . . Catastrophic 10 | . 3 . 1 . . . . . 6 . . . . Database Lockouts 2 | . 1 . 1 . . . . . . . . . . Manual 58 | . 13 . 20 . 1 . 3 4 13 . . 4 . Terminals 88 | . 24 . 29 . . . 3 12 20 . . . . Fabricators 2 | . . . . . . . . . 2 . . . . Repair Stations 18 | . 2 . 5 . . . . . 11 . . . . Recycling Units 7 | . 3 . 3 . . . . . 1 . . . . Scanalyzers 7 | . . . 5 . . . . . 2 . . . . Garrison Access 4 | . . . . . . . . . 4 . . . . Terminal Hacks 38 | . 8 1 8 . 1 . . 5 2 1 7 5 . Record 6 | . . . . . . . . . . . 6 . . Part Schematic 5 | . . . . . . . . . . . . 5 . Robot Analysis 5 | . 1 . 3 . . . . . 1 . . . . Prototype ID Bank 1 | . . . 1 . . . . . . . . . . Open Door 7 | . . 1 . . . . . 4 . 1 1 . . Terminal Index 3 | . 1 . 1 . . . . . 1 . . . . Alert Level 1 | . 1 . . . . . . . . . . . . Unreport Threat 5 | . 2 . 2 . . . . 1 . . . . . Locate Traps 3 | . 2 . 1 . . . . . . . . . . Hauler Manifests 1 | . 1 . . . . . . . . . . . . Derelict Proto ID Bank 1 | . . . . . 1 . . . . . . . . Fabricator Hacks . | . . . . . . . . . . . . . . Repair Station Hacks 10 | . 2 . 3 . . . . . 5 . . . . Scan Component 6 | . 1 . 2 . . . . . 3 . . . . Repair 4 | . 1 . 1 . . . . . 2 . . . . Recycling Unit Hacks 1 | . . . 1 . . . . . . . . . . Retrieve Components 1 | . . . 1 . . . . . . . . . . Scanalyzer 6 | . . . 5 . . . . . 1 . . . . Insert Component 3 | . . . 2 . . . . . 1 . . . . Analyze 3 | . . . 3 . . . . . . . . . . Garrison Access Hacks 1 | . . . . . . . . . 1 . . . . Seal Access 1 | . . . . . . . . . 1 . . . . Unauthorized Hacks 14 | . 5 . 3 . . . 1 1 4 . . . . Terminals 14 | . 5 . 3 . . . 1 1 4 . . . . Assimilate 1 | . . . . . . . . . 1 . . . . Botnet 7 | . 3 . 1 . . . 1 1 1 . . . . Disrupt 3 | . 1 . 1 . . . . . 1 . . . . Operators 3 | . 1 . 1 . . . . . 1 . . . . Fabricators . | . . . . . . . . . . . . . . Repair Stations . | . . . . . . . . . . . . . . Recycling Units . | . . . . . . . . . . . . . . Scanalyzers . | . . . . . . . . . . . . . . Garrison Access . | . . . . . . . . . . . . . . Data Cores Recovered 2 | . . . 1 . . . . . 1 . . . . Used 1 | . . . 1 . . . . . . . . . . Hacking Detections 42 | . 8 . 13 . . . 1 4 16 . . . . Full Trace Events 5 | . 1 . 2 . . . . 1 1 . . . . Feedback Events . | . . . . . . . . . . . . . . Feedback Blocked . | . . . . . . . . . . . . . . Robot Schematics Acquired 3 | . . . . . . . . . . . . 3 . Robots Built . | . . . . . . . . . . . . . . Authchips . | . . . . . . . . . . . . . . Time . | . . . . . . . . . . . . . . Total Robot Build Rating . | . . . . . . . . . . . . . . Part Schematics Acquired 23 | . . . 2 . . . . . . . . 21 . Parts Built . | . . . . . . . . . . . . . . Authchips . | . . . . . . . . . . . . . . Time . | . . . . . . . . . . . . . . Total Part Build Rating . | . . . . . . . . . . . . . . Parts Repaired 3 | . 1 . 1 . . . . . 1 . . . . Time 155 | . 26 . 38 . . . . . 91 . . . . Parts Recycled . | . . . . . . . . . . . . . . Recycled Matter . | . . . . . . . . . . . . . . Retrieved Matter . | . . . . . . . . . . . . . . Retrieved Components . | . . . . . . . . . . . . . . Parts Scanalyzed 3 | . . . 2 . . . . . 1 . . . . Part Schematics Acquired 2 | . . . 2 . . . . . . . . . . Parts Damaged . | . . . . . . . . . . . . . . Bothacking | -11 -10 -10 -9 -9 -9 -8 -8 -8 -7 -7 -7 -7 -7 ------------ Run | Yrd Mat Min Mat Min Exi Min Mat Sto Fac Low Low Zio Dee Used RIF Installer . | . . . . . . . . . . . . . . Robots Hacked . | . . . . . . . . . . . . . . Non-combat . | . . . . . . . . . . . . . . Combat . | . . . . . . . . . . . . . . Robot Hacks Applied . | . . . . . . . . . . . . . . Relay Couplers Released . | . . . . . . . . . . . . . . Fabnet Peak Effective % . | . . . . . . . . . . . . . . Robots Rewired 2 | . . . . . . . . . . 2 . . . Allies Hacked . | . . . . . . . . . . . . . . Hacks Repelled . | . . . . . . . . . . . . . . Allies | -11 -10 -10 -9 -9 -9 -8 -8 -8 -7 -7 -7 -7 -7 -------- Run | Yrd Mat Min Mat Min Exi Min Mat Sto Fac Low Low Zio Dee Total Allies 5 | . . . . . . . . 2 1 2 . . . Largest Group 2 | . . . . . . . . 2 1 1 . . . Highest-Rated Group 62 | . . . . . . . . 62 26 16 . . . Highest-Rated Ally 31 | . . . . . . . . 31 26 16 . . . Total Orders . | . . . . . . . . . . . . . . Ally Attacks 35 | . . . . . . . . 24 . 11 . . . Total Damage 462 | . . . . . . . . 332 . 130 . . . Kills 4 | . . . . . . . . 3 . 1 . . . Allies Corrupted . | . . . . . . . . . . . . . . Allies Melted . | . . . . . . . . . . . . . . Intel | -11 -10 -10 -9 -9 -9 -8 -8 -8 -7 -7 -7 -7 -7 ------- Run | Yrd Mat Min Mat Min Exi Min Mat Sto Fac Low Low Zio Dee Robot Analysis Total 5 | . 1 . 3 . . . . . 1 . . . . Derelict Logs Recovered 3 | . . 1 . 1 . . . . . 1 . . . Drone Launches . | . . . . . . . . . . . . . . Drone Recoveries . | . . . . . . . . . . . . . . Exploration | -11 -10 -10 -9 -9 -9 -8 -8 -8 -7 -7 -7 -7 -7 ------------- Run | Yrd Mat Min Mat Min Exi Min Mat Sto Fac Low Low Zio Dee Turns Passed 18125 | 224 1789 1335 2740 859 608 252 662 1168 3173 1980 1164 1440 731 Spaces Moved 10628 | 154 875 848 1334 524 391 129 289 580 2073 1173 764 1194 300 Core 28 | 1 . . . . . . . . . . . . 27 Treads . | . . . . . . . . . . . . . . Legs 5479 | . . 4 . . . . . . 2073 1173 764 1194 271 Wheels 5119 | 153 875 844 1334 524 391 129 289 580 . . . . . Hover 2 | . . . . . . . . . . . . . 2 Flight . | . . . . . . . . . . . . . . Fastest Speed 50 | 50 80 135 130 155 155 155 110 105 120 124 112 114 95 Average Speed 131 | 87 138 136 146 155 155 155 118 111 122 125 116 114 211 Slowest Speed 1100 | 90 140 470 215 155 155 155 155 123 125 126 184 115 1100 Overloaded Moves 1 | . . . . . . . . . . . . . 1 Propulsion Burnouts . | . . . . . . . . . . . . . . Robots Hopped . | . . . . . . . . . . . . . . Cave-ins Triggered 1 | . . . . . . 1 . . . . . . . Exploration Rate (%) 62 | 5 93 95 85 91 78 29 19 58 53 87 73 80 31 Regions Visited 13 Branch Regions 9 Pre-discovered Areas 3 | . . 1 . . . . . 1 . . . 1 . Known Exits Taken 5 | . . . . . . . 1 . 1 1 1 1 . Unknown Exits Taken 8 | 1 1 1 1 1 1 1 . 1 . . . . . Scrap Searched 9 | . . 1 . . . 1 . . . 4 1 2 . Spaces Dug 30 | . . . . . . . 2 . 26 . 2 . . Terrain Destroyed 445 | . . 24 8 39 . 39 44 72 149 13 26 . 31 Melee 2 | . . . . . . . 2 . . . . . . Projectile 90 | . . . . . . . . 1 55 13 21 . . AOE 353 | . . 24 8 39 . 39 42 71 94 . 5 . 31 Terrain Rammed . | . . . . . . . . . . . . . . Walls Destroyed . | . . . . . . . . . . . . . . Machines Disabled . | . . . . . . . . . . . . . . Actions | -11 -10 -10 -9 -9 -9 -8 -8 -8 -7 -7 -7 -7 -7 --------- Run | Yrd Mat Min Mat Min Exi Min Mat Sto Fac Low Low Zio Dee Total 13579 | 217 1259 981 1838 553 398 170 471 921 2558 1619 961 1260 373 Wait 1640 | 17 186 55 220 14 . 32 78 201 299 375 101 42 20 Move 10615 | 153 874 847 1333 523 390 128 288 579 2072 1172 763 1193 300 Hop . | . . . . . . . . . . . . . . Pick Up 159 | 13 38 13 30 1 4 . 5 8 14 5 12 5 11 Fast Attach 45 | 7 2 5 5 . . . 2 5 4 2 5 2 6 Attach 58 | . 4 1 7 . . . 3 . 10 5 14 4 10 Detach 15 | . . . . . . . . . 3 2 5 5 . Swap 148 | 1 9 8 36 4 . 4 15 16 34 9 4 2 6 Drop 155 | 6 23 13 42 1 4 . 9 15 25 4 5 4 4 Fire 680 | 20 123 39 164 10 . 6 68 48 97 40 52 1 12 Melee 58 | . . . . . . . 3 49 . . . 2 4 Ram 1 | . . . 1 . . . . . . . . . . Kick . | . . . . . . . . . . . . . . Crush . | . . . . . . . . . . . . . . Escape Stasis . | . . . . . . . . . . . . . . Rewire 5 | . . . . . . . . . . 5 . . . Trap . | . . . . . . . . . . . . . . Miscellaneous . | . . . . . . . . . . . . . . Route ------- -11/Scrapyard -10/Materials (discovered 4 exits: *Mat x2 / *Min x2) -10/Mines (discovered 2 exits: *Mat x2) -9/Materials (discovered 4 exits: *Mat x3 / [*Min]) -9/Mines (discovered 3 exits: *Mat / *Exi / *Zio) -9/Exiles -8/Mines -8/Materials -8/Storage -7/Factory (discovered 3 exits: *Fac x2 / *Low) -7/Lower Caves -7/Lower Caves -7/Zion -7/Deep Caves History --------- Turn | Location | Event 34 | -11/Scrapyard | Discovered new exit (range 15) 225 | -11/Scrapyard | Entered Materials 302 | -10/Materials | Build established: Mutant 581 | -10/Materials | Discovered new exit (range 11) 798 | -10/Materials | Discovered new exit (range 11) 849 | -10/Materials | Central database locked down 949 | -10/Materials | Lost 3 parts (1p2n) 969 | -10/Materials | Build established: Scavenger-Mutant 1275 | -10/Materials | Discovered new exit (range 3) 1348 | -10/Materials | Core integrity fell below 50% 1629 | -10/Materials | Build established: Mutant 1767 | -10/Materials | Discovered new exit (range 13) 1867 | -10/Materials | Repaired Assault Rifle 2014 | -10/Materials | Entered Mines 2039 | -10/Mines | Learned location of Zion (-7) 2076 | -10/Mines | Met a Derelict bent on vengeance 2302 | -10/Mines | Discovered new exit (range 2) 2605 | -10/Mines | Discovered new exit (range 9) 2859 | -10/Mines | Found a damaged Exp. Sensor Array with a note attached 2861 | -10/Mines | Found Prototype Device 2861 | -10/Mines | Identified Exp. Sensor Array 2871 | -10/Mines | Received a Rocket Launcher from a helpful Derelict 2920 | -10/Mines | Met a Derelict who couldn't figure out how to use a Trap Extractor 3023 | -10/Mines | Core integrity fell below 20% 3051 | -10/Mines | Lost 3 parts (1p1n1w) 3349 | -10/Mines | Entered Materials 3349 | -9/Materials | Evolved 2 slots: Utility x2 3464 | -9/Materials | Discovered new exit (range 16) 3577 | -9/Materials | Build established: Scavenger-Mutant 3672 | -9/Materials | Destroyed 7 combat bots 4228 | -9/Materials | Discovered new exit (range 13) 5046 | -9/Materials | Discovered new exit (range 4) 5146 | -9/Materials | Central database locked down 5465 | -9/Materials | Discovered new exit (range 6) 5587 | -9/Materials | Build established: Mutant 5850 | -9/Materials | Repaired Hardlight Generator 6089 | -9/Materials | Entered Mines 6091 | -9/Mines | Discovered new exit (range 13) 6447 | -9/Mines | A weapon hastily lodged in a ceiling crevice suddenly fell to the ground 6493 | -9/Mines | A Derelict revealed a hidden shortcut to a safe place 6509 | -9/Mines | Deemed a non-threat by the Exiles lab entrance 6509 | -9/Mines | Discovered new exit (range 5) 6593 | -9/Mines | Found a hidden stash of uninstalled traps 6948 | -9/Mines | Entered Exiles 6986 | -9/Exiles | Met 8R-AWN 7009 | -9/Exiles | Met EX-HEX 7065 | -9/Exiles | Met EX-BIN 7094 | -9/Exiles | Aligned with FarCom system 7096 | -9/Exiles | Given EX-Vault access code 7136 | -9/Exiles | Opened EX-Vault 7150 | -9/Exiles | Found Potential Leg 7152 | -9/Exiles | Found Potential Leg 7161 | -9/Exiles | Found Cloak of Protection 7197 | -9/Exiles | Warned to stay clear of 0b10 Research branches 7244 | -9/Exiles | Met EX-DEC 7298 | -9/Exiles | Visited The Gauntlet 7542 | -9/Exiles | Discovered new exit (range 10) 7556 | -9/Exiles | Stole two prototypes: Potential Leg, Cloak of Protection 7556 | -9/Exiles | Entered Mines 7790 | -8/Mines | Discovered new exit (range 8) 7797 | -8/Mines | Crushed by falling debris 7797 | -8/Mines | Core integrity fell below 50% 7808 | -8/Mines | Entered Materials 7808 | -8/Materials | Evolved 2 slots: Propulsion x2 7809 | -8/Materials | Identified exit to Storage 7965 | -8/Materials | Garrison activated, responded to threat 8470 | -8/Materials | Entered Storage 8728 | -8/Storage | Learned location of Armory (-4) 8825 | -8/Storage | Met a pair of Derelict thieves 8923 | -8/Storage | Destroyed 9 combat bots 9458 | -8/Storage | Discovered new exit (range 20) 9495 | -8/Storage | Build established: Scavenger-Mutant 9638 | -8/Storage | Entered Factory 9638 | -7/Factory | Evolved 2 slots: Propulsion x2 9640 | -7/Factory | FarCom data flow suspended 9962 | -7/Factory | Build established: Mutant 10275 | -7/Factory | Build established: Scavenger-Skirmisher 10885 | -7/Factory | Build established: Skirmisher 11193 | -7/Factory | Discovered new exit (range 20) 11228 | -7/Factory | Identified exit to Factory 11443 | -7/Factory | Repaired Broken Hvy. Assault Cannon 12038 | -7/Factory | First assault squad dispatched 12129 | -7/Factory | Discovered exit to Factory (range 19) 12676 | -7/Factory | Discovered new exit (range 8) 12688 | -7/Factory | Identified exit to Lower Caves 12811 | -7/Factory | Entered Lower Caves 12939 | -7/Lower Caves | Found DCF Scrap (14 items) 13469 | -7/Lower Caves | Build established: Mutant 13859 | -7/Lower Caves | Attracted the attention of an 0b10 outpost 13972 | -7/Lower Caves | Learned Factory trap positions 14573 | -7/Lower Caves | Discovered new exit (range 14) 14658 | -7/Lower Caves | Identified exit to Lower Caves 14683 | -7/Lower Caves | Attracted the attention of an 0b10 checkpoint 14791 | -7/Lower Caves | Entered another Lower Caves area 14791 | -7/Lower Caves | Spotted H5-EX5(f) 14793 | -7/Lower Caves | Encountered a Master Thief 14797 | -7/Lower Caves | Potential Leg stolen by Master Thief 14798 | -7/Lower Caves | Destroyed H5-EX5(f) 14913 | -7/Lower Caves | Spotted 2V-JKN(f) 14914 | -7/Lower Caves | Encountered a Master Thief 14915 | -7/Lower Caves | Corrupted Potential Leg stolen by Master Thief 14935 | -7/Lower Caves | Found Alien Artifact 15094 | -7/Lower Caves | Attacked by a faux Warlord 15167 | -7/Lower Caves | Core integrity fell below 50% 15195 | -7/Lower Caves | Lost 7 parts (5n1u1w) 15483 | -7/Lower Caves | Build established: Scavenger-Mutant 15560 | -7/Lower Caves | Learned Research trap positions 15560 | -7/Lower Caves | Learned Extension emergency access door positions 15560 | -7/Lower Caves | Learned Research stockpile data 15560 | -7/Lower Caves | Learned Armory security intel 15560 | -7/Lower Caves | Learned Research terminal intel 15886 | -7/Lower Caves | Encountered a Warlord checkpoint 15912 | -7/Lower Caves | Discovered new exit (range 10) 15920 | -7/Lower Caves | Identified exit to Zion 15955 | -7/Lower Caves | Entered Zion 15998 | -7/Zion | System corruption cleaned by Quarantine Array 16160 | -7/Zion | Given the Hacking Drone Bay 16162 | -7/Zion | Found Prototype Device 16162 | -7/Zion | Identified Hacking Drone Bay 16618 | -7/Zion | Received a visual enhancement algorithm 16767 | -7/Zion | Acquired unknown access codes intercepted by a Zionite 16877 | -7/Zion | Found Prototype Special Weapon 16877 | -7/Zion | Identified RU-N14's Throwing Claymores 16884 | -7/Zion | Identified Core Expander 16884 | -7/Zion | Installed Core Expander, added new Weapon slot 16888 | -7/Zion | Found RU-N14's Throwing Claymores 17157 | -7/Zion | Found RU-N14's Throwing Claymores 17372 | -7/Zion | Opened final containment barrier to the Deep Caves 17390 | -7/Zion | Discovered new exit (range 3) 17390 | -7/Zion | Saw the warning signs outside the Deep Caves entrance 17391 | -7/Zion | Identified exit to Deep Caves 17395 | -7/Zion | Entered Deep Caves 17641 | -7/Deep Caves | Attacked by Z-Imprinter 17672 | -7/Deep Caves | Destroyed Z-Imprinter 17675 | -7/Deep Caves | System corruption reached 10% 17690 | -7/Deep Caves | Core integrity fell below 20% 17718 | -7/Deep Caves | Lost 10 parts (3p6n1w) 18086 | -7/Deep Caves | Found Prototype Protection 18086 | -7/Deep Caves | Identified Zio. Weapon Casing 18126 | -7/Deep Caves | Destroyed by 4D-GG8(z) with Zionite Laser-S Last Messages --------------- 18089_ Identified Zio. Light Carapace. 18091_ Acquired Zio. Weapon Casing. 18093_ Extracted 6 energy. 18095_ Acquired Zio. Biocell. 18109_ System corrupted: Matter fused (-5). 18111_ Zio. Glidesys I fried. 18111_ GQ-0A3(z) destroyed. 18111_ Chain reaction triggered in Corrupted Zio. Light DM Reactor. 18111_ Destroyed Zio. Glidesys I. 18111_ Zio. Glidesys I destroyed. 18114_ 3E-4BJ(z) misfires. 18115_ Chain reaction triggered in Zio. Light DM Reactor. 18115_ 3E-4BJ(z) destroyed. 18115_ Phase Shifter melted. 18115_ Prototype Energy Gun melted. 18115_ Zio. Glidesys I fried. 18115_ DL-LF2(z) destroyed. 18115_ Zio. Weapon Casing destroyed. 18120_ Aluminum Leg destroyed. 18123_ Gui. EMP Blaster destroyed. Map ----- +----------------------------------------------------+ | | | | | | | | | | | | | | | | | | | | | | | | | | | | | | | | | | | | | | | | | | | | | | | ???????????????????????####;#???????????###??????? | | ??????????????????????##; ;#???#########"#####??? | | ??????????????????????# ;@ ;##### ##?? | | ??????????????????????# ; !;## ##? | | ????????????????##??### ; ;; "## | | ??????????????### # " | | ??????????????# !!%* | | ????????? z! %! | | ????????? z z!% | | ????????? ! | | ?????????? | | ?????????? """"" """""" | | ??????????? """""""""""""" | | ??????????? """""""""""""" | | ??????????? """?"""""""""" | | ???????????? """???????" | | ???????????? """???????"""" | | ????????????? "?????????"""" | | ????????????? "??????????""" | | ??????????????? "???????????"" | | ????????????????? "???????????" | | ???????????????????? ???????????? | | ?????????????????????? ?????????????? | | ????????????????????????????????????????? | | ???????????????????????????????????????????? | | ????????????????????????????????????????????? | | ??????????????????????????????????????????????? | +----------------------------------------------------+ Best States ------------- Heat Dissipation 60 Energy Generation 27 Energy Capacity 290 Matter Stores 300 Matter Capacity 300 Sight Range 20 Robot Scan Range 20 Terrain Scan Range 16 Terrain Scan Density 210 Cloak Strength 5 Armor Coverage 400 Resistance: KI 30 Resistance: TH 10 Resistance: EM 15 Weapon Shielding 100 Evasion (%) 55 Targeting Accuracy 8 Defensive Hacking 11 Item Schematics ----------------- Carbon-fiber Leg | -9/Materials | Scanalyzed Hacking Suite | -9/Materials | Scanalyzed Imp. Carbon-fiber Leg | -7/Zion | Archive Adv. Terrain Scanner | -7/Zion | Archive Imp. Salvage Targeting Computer | -7/Zion | Archive Imp. Actuator Array | -7/Zion | Archive Shock Absorption System | -7/Zion | Archive EM Disruption Field | -7/Zion | Archive Kinecellerator | -7/Zion | Archive Lrn. Tractor Beam | -7/Zion | Archive Adv. Shield Generator | -7/Zion | Archive Great Axe | -7/Zion | Archive Phase Shifter | -7/Zion | Archive Force Field | -7/Zion | Archive Xenon Bombardment Thruster | -7/Zion | Archive Imp. EM Pulse Cannon | -7/Zion | Archive Power Amplifier | -7/Zion | Archive HERF Cannon | -7/Zion | Archive Battle Cannon | -7/Zion | Free Flamer | -7/Zion | Free Beamcaster | -7/Zion | Free Slug Cannon | -7/Zion | Free Ripper | -7/Zion | Free Robot Schematics ------------------ X-62 Marksman | -7/Zion | Archive A-02 Transporter | -7/Zion | Archive S-27 Virus | -7/Zion | Archive Fabricated ------------ Nothing Alien Tech Used ----------------- Core Expander Achievements -------------- None Challenges ------------ None Game ------ Seed StormTargetRigger Manual? 0 Play Time 02:05:51 Cumulative 239.2 hours Start 2024.09.23 @ 02:37:07 End 2024.09.23 @ 15:20:05 Sessions 3 Manual Loads 0 Difficulty Rogue Special Mode None Game No. 130 Rogue 130 Adventurer 0 Explorer 0 Win Type - Total 4 Types 4/0/0/0/0/0/0/0/0 Lore% 40 Gallery% 63 Achievement% 55 Wizard Run 0 Options --------- Layout 0 ASCII 0 Keyboard 1 Movement Vi Keybinds 0 Fullscreen 2 Font 18/SmallcapsGlow Map View 76x50 Zoom Use 0% Tactical HUD 1 Map Filters NONE Filters NONE Steam 1 RUN: 789d454b-f686-4bea-9999-43d40d15fa3e